bitfinex/quotes_ETHUSD_20241122
["timestamp","ask_amount","ask_price","bid_price","bid_amount"]
[1732302911412,3.05382,3274.6,3272.7,3.0]
[1732302911621,3.05382,3274.6,3272.5,0.3041]
[1732302911925,3.05395,3274.5,3272.2,1.1821]
[1732302912285,0.305382,3274.5,3272.2,1.1821]
[1732302912547,0.55,3274.3,3272.7,3.0]
[1732302912748,0.55,3274.1,3272.7,3.0]
[1732302912909,3.05352,3274.9,3272.7,3.3041]
[1732302913109,0.01,3275.2,3273.0,0.3041]
[1732302913110,0.75176354,3275.2,3273.0,0.3041]
[1732302913324,0.31804155,3275.4,3273.4,0.3041]
[1732302913505,0.31804155,3275.4,3273.5,3.0]
[1732302913714,0.31804155,3275.4,3273.5,0.3041]
[1732302913919,3.05259,3275.9,3273.8,0.3041]
[1732302914227,6.42348209,3275.8,3273.8,0.3041]
[1732302914408,3.37074209,3275.8,3273.9,3.0]
[1732302914718,3.37074209,3275.8,3273.8,0.3041]
[1732302914719,3.37072209,3275.8,3274.1,3.0]
[1732302914930,0.31803209,3275.8,3274.1,3.0]
[1732302915932,0.55,3275.5,3274.1,3.0]
[1732302916154,0.55,3275.3,3273.1,1.4862]
[1732302916719,0.55,3275.4,3273.8,3.0]
[1732302917053,0.55,3275.4,3273.1,1.4862]
[1732302917054,0.55,3275.2,3273.1,1.4862]
[1732302917216,0.55,3275.2,3273.1,1.80262293]
[1732302917415,0.55,3275.2,3273.2,0.31642293]
[1732302917626,0.55,3275.2,3273.3,0.21219263]
[1732302917856,0.55,3275.2,3273.3,0.24273975]
[1732302918039,0.55,3275.2,3273.8,3.0]
[1732302918228,6.37076209,3275.8,3273.3,0.52861556]
[1732302918419,0.33180321,3275.7,3273.8,3.0]
[1732302918617,0.33180321,3275.7,3273.3,0.52861556]
[1732302918817,0.67025653,3275.6,3273.3,0.52861556]
[1732302919149,0.33180321,3275.7,3273.8,3.0]
[1732302919309,3.33180321,3275.7,3273.3,1.51112293]
[1732302919513,0.55,3275.6,3273.8,3.0]
[1732302919719,1.22025453,3275.6,3273.8,3.0]
[1732302919952,0.55,3274.9,3273.8,3.0]
[1732302920655,0.55,3274.9,3273.3,1.51112293]
[1732302920807,0.55,3274.9,3273.8,3.0]
[1732302921000,0.55,3274.9,3273.8,0.3]
[1732302921001,0.94818575,3274.9,3273.8,0.3]
[1732302921196,0.94818575,3274.9,3273.8,3.0]
[1732302921625,0.94818575,3274.9,3273.9,3.0]
[1732302921790,0.55,3274.9,3273.9,3.0]
[1732302921991,0.55,3274.9,3273.4,1.10864439]
[1732302922359,0.55,3274.9,3274.1,3.0]
[1732302922546,0.55,3274.9,3273.4,1.10864439]
[1732302922748,0.55,3274.9,3274.1,3.0]
[1732302923846,0.55,3274.9,3273.5,0.17443707]
[1732302924236,0.55,3274.9,3274.1,3.0]
[1732302924966,3.43185746,3274.6,3273.8,3.0]
[1732302925132,0.89318575,3274.5,3273.8,3.0]
[1732302925336,0.89318575,3274.5,3273.0,1.1019]
[1732302925731,0.55,3274.1,3272.7,1.1896]
[1732302926568,3.43185746,3274.2,3272.7,1.1896]
[1732302926569,3.43185746,3274.6,3272.7,1.8253263]
[1732302926782,0.55,3274.5,3272.8,0.66627493]
[1732302927064,0.55,3274.5,3273.6,3.0]
[1732302927268,0.55,3274.5,3272.8,0.66627493]
[1732302927269,0.55,3274.5,3273.5,1.1896]
[1732302927626,0.55,3274.5,3273.6,3.0]
[1732302927829,0.55,3274.3,3272.9,1.1896]
[1732302928329,0.55,3274.3,3272.9,1.22014878]
[1732302928533,0.55,3274.3,3272.9,1.22014877]
[1732302928722,0.55,3274.3,3273.7,3.0]
[1732302929156,0.55,3274.3,3273.0,0.21613511]
[1732302929347,0.55,3274.3,3273.1,0.03054874]
[1732302929553,0.55,3274.3,3273.7,3.0]
[1732302929914,3.43185746,3274.6,3273.7,3.3]
[1732302930125,0.55,3274.5,3273.7,3.0]
[1732302930324,3.43185746,3275.0,3273.9,3.0]
[1732302930472,3.43185746,3275.0,3274.0,3.3]
[1732302930675,3.43185746,3275.0,3274.0,3.0]
[1732302931106,3.43185746,3275.0,3274.1,0.3041]
[1732302931311,3.43185746,3275.0,3274.1,3.3041]
[1732302931515,3.43185746,3275.0,3274.1,0.3041]
[1732302931691,0.34318575,3274.9,3274.1,3.3041]
[1732302932350,0.34318575,3274.9,3272.5,0.01]
[1732302932351,0.34318575,3274.9,3268.9,3.18207424]
[1732302932352,3.05726,3270.9,3268.9,3.18207424]
[1732302932496,0.1364,3271.2,3265.1,3.81888353]
[1732302932497,3.06922,3268.8,3265.1,3.81888353]
[1732302932694,3.06922,3268.8,3264.7,4.43412943]
[1732302932695,3.06063,3267.3,3267.2,2e-06]
[1732302932879,3.06063,3267.3,3264.1,5.23781539]
[1732302932880,3.06138,3266.5,3262.9,0.01]
[1732302933222,0.55,3264.7,3262.9,0.01]
[1732302933515,4.39646552,3265.0,3262.9,0.01]
[1732302933516,2.05914846,3264.9,3264.0,0.00425402]
[1732302933717,3.43185746,3264.8,3264.0,0.00425402]
[1732302933881,1.47382017,3264.7,3264.0,0.01544008]
[1732302934083,0.83664207,3264.6,3264.0,0.01544008]
[1732302934316,0.19096515,3264.5,3264.0,0.01544008]
[1732302934481,0.19096515,3264.5,3263.0,0.85487724]
[1732302934482,0.83214439,3264.4,3263.0,0.50889565]
[1732302934683,0.83214439,3264.4,3262.2,0.1464614]
[1732302934684,3.99153736,3264.2,3262.2,0.1464614]
[1732302934883,1.10949791,3264.1,3262.2,0.1464614]
[1732302935079,3.99153736,3264.2,3262.2,0.1464614]
[1732302935080,1.10949791,3264.0,3262.2,0.1464614]
[1732302935282,2.10554114,3263.9,3262.2,0.61110754]
[1732302935516,3.99153736,3264.2,3262.2,0.61110754]
[1732302935517,1.74650629,3263.8,3262.2,0.61110754]
[1732302935700,2.01915277,3263.7,3262.2,0.61110754]
[1732302935904,0.3156573,3263.7,3262.2,0.61110754]
[1732302936239,0.03830463,3263.6,3262.2,0.1464614]
[1732302936384,0.56,3263.5,3262.2,0.1464614]
[1732302936716,3.99153736,3264.2,3262.2,0.1464614]
[1732302936717,0.03831422,3263.4,3262.2,0.1464614]
[1732302936885,0.03831078,3263.9,3262.2,0.61110754]
[1732302937085,0.03830793,3264.0,3262.2,0.61110754]
[1732302937540,0.56,3263.9,3262.2,0.61110754]
[1732302937854,0.03830875,3263.8,3262.2,0.61110754]
[1732302938153,0.01,3263.5,3262.2,0.61110754]
[1732302938353,0.01,3263.1,3262.2,0.1464614]
[1732302938712,0.04831483,3263.1,3262.2,0.1464614]
[1732302938962,0.55,3263.0,3262.2,0.1464614]
[1732302939173,0.55,3262.8,3262.2,0.1464614]
[1732302939372,0.04831919,3262.9,3262.2,0.1464614]
[1732302939373,0.55,3262.6,3262.2,0.1464614]
[1732302939657,0.03832343,3262.5,3262.2,0.1464614]
[1732302940019,0.55,3262.8,3262.2,0.1464614]
[1732302940216,0.03832167,3262.7,3262.2,0.1464614]
[1732302940417,0.03832167,3262.7,3262.0,0.652955]
[1732302941340,0.55,3262.6,3262.0,0.652955]
[1732302941543,0.03832218,3262.5,3262.0,0.652955]
[1732302942274,0.04832233,3262.6,3262.0,0.652955]
[1732302942749,1.27284933,3262.6,3262.0,0.652955]
[1732302942954,1.224527,3262.6,3262.0,1.10977943]
[1732302943839,1.26284413,3262.6,3262.0,0.652955]
[1732302944070,1.224527,3262.6,3262.0,0.652955]
[1732302944441,0.03831832,3262.5,3262.0,0.652955]
[1732302944839,0.01,3262.4,3262.0,0.652955]
[1732302945036,0.03832317,3262.3,3262.0,0.652955]
[1732302945236,0.01,3262.2,3262.0,0.652955]
[1732302946342,0.038326,3262.1,3262.0,0.652955]
[1732302946545,0.03832687,3262.3,3262.0,0.652955]
[1732302946768,0.0383265,3262.4,3262.0,0.652955]
[1732302947536,0.0383265,3262.4,3262.0,0.45682443]
[1732302947842,1.234527,3262.6,3261.8,0.76381795]
[1732302947843,0.03832323,3262.5,3261.8,0.76381795]
[1732302948064,0.03832028,3262.5,3261.8,0.76381795]
[1732302948265,1.224527,3262.6,3261.8,0.76381795]
[1732302948467,0.03832157,3262.5,3261.8,0.76381795]
[1732302949291,0.03832157,3262.5,3261.9,0.55]
[1732302950466,1.224527,3262.6,3261.9,0.55]
[1732302950667,0.01,3263.8,3261.9,0.55]
[1732302950668,0.03831638,3263.8,3261.9,0.55]
[1732302950972,0.02,3264.2,3261.9,0.55]
[1732302950973,1.0934,3263.5,3261.9,0.55]
[1732302951282,0.03830749,3263.4,3261.9,0.55]
[1732302952756,1.0934,3263.5,3261.9,0.55]
[1732302952956,0.03830777,3263.4,3261.9,0.55]
[1732302953303,1.0934,3263.5,3261.9,0.55]
[1732302953486,0.03830735,3263.4,3261.9,0.55]
[1732302953998,0.04830639,3264.3,3261.9,0.55]
[1732302954155,1.0934,3263.8,3261.9,0.55]
[1732302954356,0.03830348,3263.7,3261.9,0.55]
[1732302955169,0.03830348,3263.7,3261.8,0.76381795]
[1732302955800,0.04830348,3263.7,3261.8,0.76381795]
[1732302957065,0.01,3263.1,3261.8,0.94953975]
[1732302957710,0.01,3263.2,3261.8,0.94953975]
[1732302958005,0.04831751,3263.2,3261.8,0.76381795]
[1732302958361,0.01,3262.8,3261.8,0.76381795]
[1732302958565,0.04832252,3262.8,3261.8,0.76381795]
[1732302960101,0.01,3262.6,3261.8,0.76381795]
[1732302960325,0.04832323,3262.6,3261.8,0.76381795]
[1732302960899,0.05832323,3262.6,3261.8,0.76381795]
[1732302961205,0.02,3262.6,3261.8,0.76381795]
[1732302962311,0.28026886,3262.5,3261.8,0.76381795]
[1732302962621,0.03832394,3263.3,3261.9,0.55]
[1732302962908,0.03831383,3263.4,3262.1,0.55]
[1732302963124,0.03831383,3263.4,3262.3,0.55]
[1732302963318,0.01,3263.5,3262.3,0.55]
[1732302963319,0.44843018,3263.5,3262.3,0.55]
[1732302963473,0.0383091,3263.4,3262.3,0.55]
[1732302963685,0.01,3262.9,3262.0,1.1785]
[1732302963881,0.01,3263.2,3262.0,1.1785]
[1732302964210,0.01,3263.0,3262.0,1.1785]
[1732302964414,0.01,3262.8,3261.8,0.76381795]
[1732302964616,0.01,3262.6,3261.8,0.76381795]
[1732302964780,0.03832355,3262.6,3261.8,0.76381795]
[1732302964977,0.01,3262.5,3261.8,0.76381795]
[1732302965180,0.44928296,3262.6,3261.8,0.76381795]
[1732302965424,0.0383209,3262.5,3261.8,0.76381795]
[1732302965591,0.44928296,3262.4,3261.8,0.76381795]
[1732302965790,0.0383241,3262.3,3261.8,0.76381795]
[1732302966120,0.44928296,3262.5,3261.8,0.76381795]
[1732302966319,0.03832402,3262.3,3261.8,0.76381795]
[1732302966485,0.44928296,3262.7,3261.8,0.76381795]
[1732302966680,0.44928296,3262.6,3261.8,0.76381795]
[1732302966876,0.48760414,3262.7,3261.8,0.76381795]
[1732302967079,0.01,3262.5,3261.8,0.76381795]
[1732302968095,0.01,3262.1,3261.8,0.76381795]
[1732302968319,0.45033033,3262.4,3261.8,0.76381795]
[1732302968522,0.48865472,3262.3,3261.8,0.76381795]
[1732302968728,0.03832439,3262.3,3261.8,0.76381795]
[1732302968929,0.48865472,3262.3,3261.8,0.76381795]
[1732302969091,0.45033033,3262.2,3261.8,0.76381795]
[1732302969292,0.48865314,3262.4,3261.9,1.1033]
[1732302969538,0.4690941,3263.1,3262.0,0.1867118]
[1732302969692,0.4690941,3263.5,3262.0,0.21736437]
[1732302969897,0.03826596,3263.6,3262.1,0.55]
[1732302970529,0.03826596,3263.7,3262.2,0.03064806]
[1732302970733,1.0934,3263.8,3262.4,0.55]
[1732302970934,1.0934,3263.8,3262.7,0.55]
[1732302971139,0.4690941,3264.9,3263.9,1.0812]
[1732302971341,0.01,3265.2,3263.9,1.0812]
[1732302971342,1.0812,3264.4,3263.9,1.0812]
[1732302971548,1.0812,3264.4,3263.9,4.0812]
[1732302971698,1.0812,3264.4,3264.0,0.40812]
[1732302971903,1.0812,3264.4,3263.9,4.0812]
[1732302972207,0.03826596,3265.1,3263.9,4.0812]
[1732302972433,1.0812,3265.1,3263.9,4.0812]
[1732302972599,0.03826596,3265.0,3263.9,4.0812]
[1732302972799,0.03826596,3265.0,3264.0,0.40812]
[1732302973003,0.03826596,3265.0,3264.0,0.55]
[1732302973610,0.01,3264.9,3263.9,1.0812]
[1732302974123,0.01,3264.5,3263.4,1.1801]
[1732302974431,0.04826596,3264.5,3263.4,1.1801]
[1732302974634,0.28048682,3264.4,3263.4,1.1801]
[1732302974838,0.03826596,3264.3,3263.4,1.1801]
[1732302975039,0.02,3264.7,3263.4,1.1801]
[1732302975198,0.28036086,3264.6,3263.4,1.1801]
[1732302975399,0.01,3264.3,3263.4,1.1801]
[1732302975638,0.03826596,3264.5,3262.8,1.2396]
[1732302975639,0.01,3264.1,3262.8,1.2396]
[1732302975797,0.02,3264.1,3262.8,1.2396]
[1732302975999,0.28029975,3264.0,3262.8,1.2396]
[1732302976220,0.03826596,3263.9,3262.8,1.2396]
[1732302976440,0.03826596,3263.9,3260.6,0.3057]
[1732302976441,0.03826596,3264.7,3263.0,1.2846]
[1732302976601,0.04826596,3265.0,3263.1,0.03063692]
[1732302976801,0.2803359,3264.9,3263.1,0.58063692]
[1732302977046,0.2803359,3264.9,3263.8,0.55]
[1732302977223,0.28025847,3265.0,3263.8,0.55]
[1732302977436,0.01,3265.2,3263.8,0.55]
[1732302977733,0.01,3265.2,3263.7,1.2068]
[1732302977734,0.31847177,3265.0,3263.7,1.2068]
[1732302977919,0.03826596,3265.0,3263.7,1.2068]
[1732302978239,1.0812,3265.1,3263.8,0.55]
[1732302978439,1.0812,3265.1,3263.9,0.17568]
[1732302978737,1.80560551,3264.8,3263.7,1.2068]
[1732302978937,1.84387147,3264.7,3263.7,4.2068]
[1732302979123,1.84387147,3264.7,3263.7,1.2068]
[1732302979327,1.80560551,3264.5,3262.2,1.2772]
[1732302979526,1.80560551,3264.5,3262.3,0.03063914]
[1732302979527,2.40747402,3264.3,3262.3,0.03063914]
[1732302979736,0.04826596,3264.4,3262.3,0.03063914]
[1732302979737,2.40747402,3264.1,3262.3,0.03063914]
[1732302979910,0.03826596,3264.2,3262.4,1.2113]
[1732302980235,2.40747402,3264.3,3262.5,0.03064104]
[1732302980436,2.35747402,3264.3,3262.5,0.03064104]
[1732302980639,3.13547227,3264.5,3262.6,1.2113]
[1732302980847,3.13547227,3264.8,3263.4,1.2121]
[1732302981013,3.13547227,3264.9,3263.5,3.03063465]
[1732302981358,4.25493823,3265.1,3263.6,0.42427347]
[1732302981511,4.25493823,3265.1,3263.7,3.0]
[1732302981512,1.11946596,3265.1,3263.7,3.0]
[1732302981702,4.25493823,3265.1,3263.7,3.0]
[1732302981942,4.25493823,3265.1,3263.8,0.3]
[1732302982143,1.11946596,3265.1,3263.7,3.0]
[1732302982341,4.25493823,3265.1,3263.7,3.0]
[1732302982642,1.11946596,3265.1,3263.8,0.3]
[1732302983217,1.0812,3265.1,3263.7,3.0]
[1732302983552,1.0812,3265.1,3263.5,0.03063465]
[1732302983553,1.0812,3265.1,3264.1,1.307]
[1732302983847,1.0812,3265.1,3264.2,0.4307]
[1732302984047,1.0812,3265.1,3264.2,0.03062771]
[1732302984713,1.0812,3265.1,3264.4,3.0]
[1732302984920,1.0812,3265.1,3264.1,1.307]
[1732302985133,1.0812,3265.1,3264.4,3.0]
[1732302985306,1.0812,3265.1,3264.5,0.3]
[1732302985851,1.0812,3265.1,3264.4,3.0]
[1732302985852,0.03826596,3265.0,3264.1,1.307]
[1732302986139,0.03826596,3265.0,3264.2,0.3057]
[1732302986356,1.0812,3265.1,3264.2,0.3057]
[1732302987122,0.03826596,3265.0,3264.2,3.3057]
[1732302987346,0.03826596,3265.0,3264.2,0.3057]
[1732302987558,0.03826596,3265.0,3264.1,1.307]
[1732302988264,0.03826596,3265.0,3262.1,0.33633186]
[1732302988265,0.4346,3264.9,3262.7,0.3057]
[1732302988560,0.01,3264.4,3262.9,0.3057]
[1732302989065,0.01,3264.0,3262.9,0.3057]
[1732302989281,0.01,3263.6,3262.9,0.3057]
[1732302989554,0.00382106,3263.6,3262.9,0.3057]
[1732302989996,0.04208702,3263.6,3262.9,0.3057]
[1732302990659,0.04208702,3263.6,3262.2,0.3057]
[1732302990660,2.54753524,3263.6,3262.2,0.3057]
[1732302990875,2.54753524,3263.6,3262.4,0.3057]
[1732302991164,0.04208702,3263.6,3262.4,0.3057]
[1732302991393,2.50544822,3263.3,3262.5,3.0]
[1732302991654,2.50544822,3263.2,3262.6,0.36121698]
[1732302991955,2.50544822,3263.4,3262.5,3.0]
[1732302992158,2.50544822,3263.4,3262.4,0.3057]
[1732302992159,2.50544822,3263.4,3262.6,0.33057]
[1732302992318,2.50544822,3263.4,3262.7,3.0]
[1732302992520,2.50544822,3263.7,3262.8,0.03064247]
[1732302992717,2.50544822,3263.8,3263.1,1.2373]
[1732302992922,2.50544822,3263.8,3263.2,0.03063886]
[1732302993121,2.50544822,3263.9,3263.3,0.42679389]
[1732302993359,2.50544822,3264.0,3263.2,0.03063732]
[1732302993532,2.50544822,3264.2,3263.6,3.0]
[1732302993755,2.50544822,3263.9,3263.5,0.3057]
[1732302994091,2.54371418,3263.8,3263.5,0.3057]
[1732302994238,1.23371418,3263.8,3263.5,0.3057]
[1732302994439,3.13628096,3263.9,3263.5,0.3057]
[1732302994842,3.13628096,3263.8,3263.5,0.3057]
[1732302995044,3.13628096,3263.8,3263.1,1.2373]
[1732302995045,3.13628096,3263.8,3263.1,1.543]
[1732302995382,0.00382106,3264.0,3263.1,0.3057]
[1732302995383,3.13628096,3263.7,3263.1,0.3057]
[1732302995688,3.13628096,3263.3,3263.1,0.3057]
[1732302996055,4.39079334,3263.9,3262.6,1.2907]
[1732302996056,3.13628096,3263.4,3262.7,0.3057]
[1732302996259,3.13628096,3263.4,3262.9,0.3057]
[1732302996568,3.13628096,3263.3,3262.9,0.3057]
[1732302996772,3.13628096,3263.4,3262.9,0.3057]
[1732302996951,3.13628096,3263.4,3262.3,0.3057]
[1732302996952,3.13774392,3263.1,3262.3,0.3057]
[1732302997155,3.13746127,3263.0,3262.3,0.46189]
[1732302997396,0.00382106,3263.1,3262.3,0.46189]
[1732302997397,3.13746127,3262.8,3262.3,0.46189]
[1732302997599,3.13746127,3262.9,3262.3,0.46189]
[1732302997755,3.13746127,3263.0,3262.3,0.46189]
[1732302998273,3.13746127,3263.1,3262.3,0.46189]
[1732302998472,3.76495353,3263.4,3262.3,0.46189]
[1732302998473,3.13746127,3263.0,3262.3,0.49253722]
[1732302998674,3.13746127,3263.3,3262.4,0.8557]
[1732302998876,3.13746127,3263.6,3262.5,1.28684268]
[1732302999068,3.13746127,3263.7,3262.6,0.76425427]
[1732302999386,3.13746127,3264.0,3262.8,3.8557]
[1732302999592,0.42842106,3264.8,3262.7,0.53574998]
[1732302999593,3.13746127,3264.2,3263.0,0.8557]
[1732302999747,3.13746127,3264.3,3263.1,0.8548689]
[1732303000182,3.13746127,3264.2,3263.1,0.8548689]
[1732303000384,3.13746127,3264.0,3263.2,0.44048689]
[1732303000590,3.13746127,3264.0,3263.0,0.03063528]
[1732303000884,3.13746127,3263.9,3262.9,1.299]
[1732303001069,3.76877459,3264.2,3263.2,3.0]
[1732303001070,3.13746127,3263.7,3263.2,3.0]
[1732303001275,3.13850296,3263.6,3263.0,0.3057]
[1732303001483,0.00382106,3264.0,3262.9,1.299]
[1732303001484,3.13850296,3263.5,3263.2,0.3057]
[1732303001680,3.13850296,3263.4,3263.2,0.3057]
[1732303001863,3.13850296,3263.3,3263.2,0.3057]
[1732303002065,3.78002461,3263.4,3263.2,0.3057]
[1732303002398,3.78002461,3263.4,3262.4,1.2814]
[1732303002399,0.00382106,3263.4,3263.3,0.3057]
[1732303003382,3.76620355,3263.6,3263.4,0.3057]
[1732303003704,3.78002461,3263.5,3263.4,0.3057]
[1732303003851,3.77002461,3263.5,3263.4,0.3057]
[1732303004047,3.76620355,3263.6,3263.4,0.3057]
[1732303004448,3.14084963,3263.7,3263.5,0.3057]
[1732303004651,3.14084963,3263.9,3263.6,3.4686]
[1732303004951,3.76620355,3264.2,3263.8,0.3057]
[1732303004952,3.14084963,3264.2,3263.8,0.3057]
[1732303005153,3.14084963,3264.3,3263.8,0.3057]
[1732303005465,1.0812,3265.1,3264.1,0.3057]
[1732303005466,3.14084963,3264.5,3264.1,0.3057]
[1732303005671,1.0812,3265.1,3264.4,0.3057]
[1732303005872,1.0812,3265.1,3265.0,0.3057]
[1732303006080,1.0812,3265.1,3264.5,0.19461753]
[1732303006283,3.77121244,3265.5,3264.5,0.19461753]
[1732303006486,0.00382106,3265.7,3264.5,0.19461753]
[1732303006487,1.223227,3265.4,3264.9,3.0]
[1732303007095,1.223227,3265.4,3264.5,0.19461522]
[1732303007303,4.99443944,3265.4,3264.9,3.0]
[1732303007519,4.99443944,3265.4,3264.5,0.16399]
[1732303007520,3.77121244,3265.3,3264.5,0.16399]
[1732303007669,4.99443944,3265.4,3264.9,3.0]
[1732303007872,4.99443944,3265.4,3264.5,0.16399]
[1732303008081,4.99443944,3265.4,3264.9,3.0]
[1732303008250,1.223227,3265.4,3264.5,0.16399]
[1732303008694,0.00382106,3265.3,3264.3,1.3342]
[1732303008860,0.00382106,3265.3,3264.6,3.0]
[1732303009201,3.77121244,3265.2,3264.3,1.3342]
[1732303009499,3.77121244,3265.3,3264.4,0.03063015]
[1732303009655,1.233227,3265.4,3264.4,0.03063015]
[1732303009859,1.233227,3265.4,3264.6,3.0]
[1732303010083,5.00198132,3265.4,3264.7,0.3]
[1732303010283,3.76875432,3265.3,3264.3,1.3342]
[1732303010781,1.233227,3265.4,3264.3,1.3342]
[1732303011790,3.77233243,3265.2,3264.3,1.3342]
[1732303012004,3.77233243,3265.2,3264.6,3.0]
[1732303012005,3.76851137,3265.1,3264.6,3.0]
[1732303012491,3.77233243,3265.2,3264.3,1.3342]
[1732303012727,0.00382106,3265.2,3264.3,1.3342]
[1732303013086,0.00382106,3265.2,3264.6,3.0]
[1732303013290,0.00382106,3265.2,3264.3,1.3342]
[1732303013512,0.00382106,3265.2,3263.4,0.3057]
[1732303013513,0.00382106,3264.9,3263.4,0.3057]
[1732303013727,0.00382106,3264.9,3261.4,1.2724702]
[1732303013728,0.00382106,3265.1,3264.3,3.0]
[1732303013914,0.01382106,3265.1,3264.3,3.0]
[1732303014505,0.01,3265.1,3263.7,0.0306312]
[1732303014791,1.223227,3265.4,3263.7,0.0306312]
[1732303014792,1.223227,3265.4,3264.8,3.0]
[1732303015135,1.223227,3265.4,3263.7,0.0306312]
[1732303015136,1.223227,3265.4,3264.9,0.3]
[1732303015292,1.223227,3265.4,3264.6,1.2752]
[1732303016121,1.223227,3265.4,3264.7,0.3057]
[1732303016439,0.00382106,3265.3,3264.7,0.3057]
[1732303016794,0.00382106,3264.7,3263.7,0.3057]
[1732303017098,0.00382106,3264.7,3263.8,0.46385]
[1732303017605,0.01,3264.8,3263.8,0.46385]
[1732303017806,0.00382106,3264.8,3263.8,0.46385]
[1732303018008,0.01382106,3264.8,3263.8,0.46385]
[1732303018222,0.01,3265.1,3263.9,0.03063403]
[1732303018407,0.01,3265.1,3263.8,0.49448082]
[1732303018891,0.4472,3265.3,3263.8,0.49448082]
[1732303018892,0.4572,3265.3,3264.4,3.0]
[1732303019088,0.4572,3265.3,3264.5,0.3]
[1732303019292,0.01,3265.1,3263.8,0.49448082]
[1732303019904,0.01,3265.1,3264.4,3.0]
[1732303020446,1.223227,3265.4,3264.6,3.0]
[1732303020622,1.223227,3265.4,3264.7,1.2758]
[1732303021000,1.223227,3265.4,3264.8,3.0]
[1732303021194,1.223227,3265.4,3264.4,1.2758]
[1732303021414,1.223227,3265.4,3264.5,0.15815]
[1732303021597,1.223227,3265.4,3264.8,3.0]
[1732303021929,1.223227,3265.4,3264.5,0.15815]
[1732303022307,1.223227,3265.4,3264.8,3.0]
[1732303022508,1.223227,3265.4,3264.5,0.15815]
[1732303022509,1.22704806,3265.4,3264.5,0.15815]
[1732303022711,1.223227,3265.4,3264.8,3.0]
[1732303023029,1.223227,3265.4,3264.9,0.3]
[1732303023231,1.223227,3265.4,3264.5,0.18877566]
[1732303023437,0.01,3265.9,3264.5,0.18877566]
[1732303023940,1.223135,3265.8,3264.5,0.18877566]
[1732303024105,1.22695606,3265.8,3264.6,0.3057]
[1732303024432,1.23695606,3265.8,3265.2,3.0]
[1732303024593,1.23695606,3265.8,3264.6,0.3057]
[1732303024801,0.28093947,3265.7,3264.6,0.3057]
[1732303025009,1.23695606,3265.8,3264.7,0.03062474]
[1732303025308,1.23695606,3265.8,3264.6,0.3057]
[1732303025697,0.28095333,3265.7,3264.6,0.3057]
[1732303025928,0.01,3265.3,3264.6,0.17702747]
[1732303026243,0.01,3265.3,3264.4,1.2758]
[1732303026244,0.4472,3265.3,3264.4,1.2758]
[1732303026441,1.223135,3265.8,3264.4,1.2758]
[1732303026442,0.4472,3265.7,3264.4,1.2758]
[1732303026611,0.01,3265.5,3264.4,1.2758]
[1732303026825,0.4472,3265.7,3264.4,1.2758]
[1732303027016,0.4472,3265.7,3264.5,0.3057]
[1732303027017,0.01,3265.5,3264.5,0.3057]
[1732303027319,0.4472,3265.7,3264.6,0.15815]
[1732303027742,0.4472,3265.7,3264.9,3.0]
[1732303027921,0.0191909,3269.3,3265.9,0.1592581]
[1732303028126,3.05762,3270.6,3265.9,0.1592581]
[1732303028127,0.0171223,3269.9,3269.6,0.01]
[1732303028366,3.44923738,3274.0,3270.2,0.01]
[1732303028530,1.31228238,3274.4,3270.6,0.01]
[1732303028713,0.06987804,3271.1,3270.7,1.40565652]
[1732303028913,0.06987804,3271.1,3270.9,0.01]
[1732303029240,0.06987804,3271.1,3270.2,3.0]
[1732303029241,1.5554403,3271.4,3270.1,1.2308]
[1732303029416,1.5554403,3271.4,3269.9,0.01]
[1732303029417,1.96447356,3271.0,3269.9,0.01]
[1732303029609,3.05516,3273.2,3269.5,1.2208]
[1732303029610,3.44923738,3272.6,3269.8,0.01]
[1732303029857,3.44923738,3272.6,3269.5,1.2208]
[1732303029858,0.2153,3271.8,3270.2,0.01]
[1732303030166,0.2153,3271.8,3270.4,3.01]
[1732303030353,0.2153,3271.8,3270.7,0.01]
[1732303030525,0.2153,3271.8,3270.8,4.06432406]
[1732303030851,0.2153,3271.8,3270.9,3.53469406]
[1732303031062,3.97083938,3272.9,3270.9,3.53469406]
[1732303031366,0.2153,3271.8,3270.7,0.01]
[1732303032322,0.2257,3271.8,3270.5,3.01]
[1732303032685,0.2257,3271.8,3269.6,0.03057212]
[1732303032686,0.22107438,3271.8,3270.2,0.01]
[1732303032827,0.22107438,3271.8,3269.6,0.03057212]
[1732303032828,3.97083938,3271.4,3269.6,0.01]
[1732303033023,0.39708394,3271.3,3269.6,0.01]
[1732303033484,0.55,3271.7,3269.6,0.01]
[1732303033700,0.55,3271.7,3269.6,0.02]
[1732303034139,0.0104,3271.6,3269.6,0.02]
[1732303034460,0.0104,3271.6,3269.4,0.02]
[1732303034647,0.0104,3271.5,3269.4,0.02]
[1732303034967,0.0104,3271.1,3269.2,0.01]
[1732303035136,0.0104,3271.1,3268.4,1.2146]
[1732303035137,0.0104,3270.7,3268.8,0.01]
[1732303035470,0.0104,3270.7,3268.8,0.02]
[1732303036944,0.0104,3270.7,3269.1,0.01]
[1732303037142,0.355,3271.1,3269.7,0.01]
[1732303037341,0.1464614,3271.9,3270.2,0.01]
[1732303037575,0.1464614,3271.9,3270.3,0.01]
[1732303038480,0.1464614,3271.9,3270.6,0.02]
[1732303039184,0.1464614,3271.9,3270.4,0.01]
[1732303039388,0.1464614,3271.9,3270.1,0.01]
[1732303039555,0.1464614,3271.9,3270.1,3.01]
[1732303039750,0.1464614,3271.9,3270.2,0.01]
[1732303040148,0.1464614,3271.9,3269.8,1.2277]
[1732303040149,4.18151376,3271.8,3269.8,1.2277]
[1732303040477,0.43279752,3271.7,3269.5,0.01]
[1732303040644,3.97083938,3271.3,3269.3,1.2838]
[1732303040847,3.97083938,3271.3,3269.1,0.01]
[1732303041044,0.37357678,3271.2,3269.1,0.01]
[1732303041267,0.37357678,3271.2,3269.2,0.01]